Cogmind - Beta 16.1 @@@ ROGUE MODE // 2026.04.25 @ 00:39:25 Player: AngelSpirit Result: Destroyed by 3W-IK3(R) with Subdweller Machine Gun Performance ------------- Evolutions (0) 0 Regions Visited (2) 400 Robots Destroyed (25) 125 Value Destroyed (618) 618 Prototype IDs (13) 260 Alien Tech Used (0) 0 Bonus (0) 0 TOTAL SCORE: 1403 Bonus ------- None Cogmind --------- Core Integrity 0/250 Matter 288/300 Energy 250/250 System Corruption 3% Temperature Cool (0) Movement Treading (160) Location -10/Subcaves Parts ------- > --- POWER (1) -------- Ion Engine > --- PROPULSION (2) --- Light Treads Improved Treads > --- UTILITY (2) ------ Scrap Shield > --- WEAPON (2) ------- Subdweller Machine Gun Subdweller Machine Gun > --- INVENTORY (5) ---- Light Treads Wheel Huge Storage Unit Subdweller Machine Gun Grenade Launcher Peak State ------------ > --- POWER ------------ Ion Engine > --- PROPULSION ------- Improved Treads Improved Treads > --- UTILITY ---------- Huge Storage Unit Backup Plating I > --- WEAPON ----------- Beam Cannon Subdweller Machine Gun > --- INVENTORY -------- Subdweller Power Source Light Treads Light Treads Light Treads Light Treads Improved Treads Improved Treads Wheel Wheel Wheel Wheel Wheel Compact Wheel Subdweller Monowheel High-capacity Storage Unit Seismic Detector Scrap Shield Grenade Launcher Mining Laser Heavy Hammer Heavy Hammer [Rating: 13] Favorites ----------- Power Ion Engine Engine Ion Engine Propulsion Improved Treads Treads Improved Treads Wheel Compact Wheel Utility Huge Storage Unit Device Sensor Array Storage Huge Storage Unit Hackware Hacking Suite Protection Scrap Shield Weapon Light Assault Rifle Energy Cannon Beam Cannon Ballistic Gun Light Assault Rifle Special Weapon Mining Laser Impact Weapon Heavy Hammer Build | -11 -10 -10 ------- Run | Yrd Mat Sub Slots Evolved . | . . . Power . | . . . Propulsion . | . . . Utility . | . . . Weapon . | . . . Parts Attached 29 | 7 12 10 Power 3 | 1 2 . Engine 3 | 1 2 . Core . | . . . Reactor . | . . . Propulsion 6 | 2 1 3 Treads 3 | . . 3 Leg . | . . . Wheel 3 | 2 1 . Hover . | . . . Flight . | . . . Utility 9 | 2 5 2 Device 2 | 1 . 1 Storage 4 | 1 3 . Processor . | . . . Hackware 1 | . 1 . Protection 2 | . 1 1 Artifact . | . . . Weapon 11 | 2 4 5 Energy Gun . | . . . Energy Cannon 1 | . . 1 Ballistic Gun 7 | 2 1 4 Ballistic Cannon . | . . . Launcher . | . . . Special Weapon 1 | . 1 . Impact Weapon 2 | . 2 . Slashing Weapon . | . . . Piercing Weapon . | . . . Special Melee Weapon . | . . . Unidentified Prototypes . | . . . Parts Lost 3 | . 2 1 Power 1 | . 1 . Propulsion 1 | . 1 . Utility 1 | . . 1 Weapon . | . . . Highest Loss Streak 2 | . 2 1 To Critical Strikes . | . . . Average Backups 10 | 2 9 11 Power . | . . . Propulsion 5 | 1 5 6 Utility 1 | . 2 1 Weapon 2 | . 2 3 Tool/Special . | . . . Unused Backups 14 | . . 14 Power 1 | . . 1 Propulsion 10 | . . 10 Utility . | . . . Weapon 3 | . . 3 Tool/Special . | . . . Average Slot Usage (%) 95 | . 99 91 Engine 13 | . 13 14 Treads 14 | . . 27 Wheel 13 | . 27 . Device 4 | . 4 4 Storage 10 | . 14 6 Hackware 4 | . 9 . Protection 4 | . . 9 Energy Cannon 3 | . . 6 Ballistic Gun 23 | . 25 21 Peak Build Rating 13 | 7 10 13 Average Rating 10 | 5 8 11 On Entrance 5 | . 7 9 Avg Prop Armor Cover (%) . | . . . Naked Turns . | . . . Heaviest Build 93 | 11 91 93 Greatest Support 46 | 26 26 46 Greatest Overweight (x) 3 | . 3 3 Average Overweight (x) 1 | . 1 . Largest Inventory Capacity 25 | 8 25 25 Average Capacity 17 | 7 21 13 Most Carried 23 | 5 20 23 Average Carried 10 | 2 9 11 Final Capacity 25 | 8 25 5 Final Carried 20 | 4 20 5 Class Distribution -------------------- 72% | Mutant 27% | Subdweller-Mutant Dominant Class ---------------- Mutant | -10/Materials Subdweller-Mutant | -10/Subcaves Resources | -11 -10 -10 ----------- Run | Yrd Mat Sub Matter Collected 940 | 318 345 277 Remotely . | . . . Salvage Created 838 | 135 446 257 Parts 57 | 8 25 24 Haulers Intercepted 1 | . 1 . Recyclers Shooed 1 | 1 . . Parts Field Recycled . | . . . Retrieved Matter . | . . . Parts Self-Destructed 5 | . . 5 Prevented . | . . . Parts Restored . | . . . Kills | -11 -10 -10 ------- Run | Yrd Mat Sub Combat Hostiles Destroyed 18 | . 12 6 Melee 1 | . 1 . Guns 15 | . 11 4 Cannons 2 | . . 2 Classes Destroyed 9 | 3 4 2 Worker 1 | 1 . . Tunneler 3 | 3 . . Hauler 1 | . 1 . Recycler 1 | 1 . . Operator 1 | . 1 . Swarmer 4 | . 4 . Grunt 8 | . 8 . Artisan 1 | . . 1 Subdweller 6 | . . 6 Best Kill Streak 5 | 2 5 2 Combat Bots Only 5 | . 5 2 Max Kills in Single Turn 1 | 1 1 1 Gunslinging . | . . . Exploded . | . . . Melee 1 | . 1 . Uniques/NPCs Destroyed . | . . . Combat | -11 -10 -10 -------- Run | Yrd Mat Sub Hostile Shots Fired 78 | . 49 29 Missed 21 | . 15 6 Hits 57 | . 34 23 Projectile 57 | . 34 23 Critical Strikes 1 | . . 1 Damage Taken 856 | . 336 520 Core 257 | . 105 152 Absorbed by Shields . | . . . Core Remaining (%) 100 | 100 . . Volleys Fired 124 | 24 65 35 Largest 2 | 2 2 2 Hottest 100 | 40 100 90 Shots Fired 243 | 48 125 70 Gun 222 | 48 122 52 Cannon 18 | . . 18 Launcher . | . . . Special 3 | . 3 . Kinetic 222 | 48 122 52 Thermal 21 | . 3 18 Explosive . | . . . Electromagnetic . | . . . Robot Hit Streak 13 | 4 7 13 Robot Miss Streak 6 | 3 6 2 Penetration Max . | . . . Secondary Targets 1 | . 1 . Max Gunslinging Chain 1 | . 1 . Shots Hit Robots 126 | 29 60 37 Core Hits 49 | 12 25 12 Critical Kills 1 | . 1 . Critical Parts Destroyed 2 | 2 . . Critical Strikes 3 | 2 1 . Destroy 3 | 2 1 . Melee Attacks 5 | . 5 . Impact 5 | . 5 . Slashing . | . . . Piercing . | . . . Sneak Attacks . | . . . Combat Hostiles . | . . . Follow-up Attacks . | . . . Damage Inflicted 1450 | 243 544 663 Guns 1157 | 243 493 421 Cannons 242 | . . 242 Explosions . | . . . Melee 51 | . 51 . Ramming . | . . . Kinetic 1157 | 243 493 421 Thermal 242 | . . 242 Explosive . | . . . Electromagnetic . | . . . Impact 51 | . 51 . Slashing . | . . . Piercing . | . . . Highest Corruption 3 | . 3 3 Average Corruption 2 | . 2 3 Corruption Purged . | . . . Corruption Blocked . | . . . Effects 40 | . 19 21 Message Errors 7 | . 2 5 Matter Fused 11 | . 5 6 Heat Flow Errors 3 | . 2 1 Energy Discharges 7 | . 3 4 Parts Rejected 1 | . 1 . Parts Fused 1 | . 1 . Data Loss (minor) 4 | . 3 1 Data Loss (major) 4 | . 1 3 Misfires 1 | . . 1 Weapon Failures 1 | . 1 . Overload Shots . | . . . Overflow Damage 21 | . 21 . Projectiles . | . . . Explosions . | . . . Melee 21 | . 21 . Knockbacks . | . . . Impact . | . . . Kinetic . | . . . Secondary . | . . . Self-Inflicted Damage . | . . . Shots . | . . . Rammed . | . . . Targets Rammed . | . . . Kicked . | . . . Crushed . | . . . Highest Temperature 241 | . 237 241 Average Temperature 61 | . 55 121 Received Heat Transfer 120 | . 114 6 Siege Activations . | . . . Martial Activations . | . . . Shielding Activations . | . . . Robots Disrupted . | . . . Combat Hostiles . | . . . Robots Corrupted . | . . . Combat Hostiles . | . . . Parts Fried 1 | . 1 . Impact Corruptions 1 | . 1 . Robots Melted . | . . . Combat Hostiles . | . . . Parts Melted 1 | . . 1 Heat Transferred 518 | . . 518 Parts Sabotaged . | . . . Parts Stolen . | . . . Parts Stripped . | . . . Power Chain Reactions . | . . . Alert | -11 -10 -10 ------- Run | Yrd Mat Sub Maximum Alert Level . | . . . Low Security (%) 100 | 100 100 . Level 1 . | . . . Level 2 . | . . . Level 3 . | . . . Level 4 . | . . . Level 5 . | . . . High Security . | . . . Max Security . | . . . Peak Influence 173 | 5 173 . Initial 3 | . 3 . Average 60 | 1 66 . Influence Increases 494 | 25 469 . Destroy 0b10 Robot/C 240 | . 240 . Destroy 0b10 Robot/NC 35 | 25 10 . Destroy Leader 52 | . 52 . Successful Hack 15 | . 15 . Select Force Hacks 60 | . 60 . Disable Machine 30 | . 30 . Destroy Structure 2 | . 2 . Lose Combat Pursuer 60 | . 60 . Influence Decreases 494 | 20 363 111 Entered New Map 56 | . 2 54 Time Decay 418 | 20 341 57 Lost Part 20 | . 20 . Squads Dispatched 6 | . 6 . Investigation 4 | . 4 . Extermination . | . . . Reinforcement 2 | . 2 . Assault . | . . . Garrison . | . . . Intercept . | . . . Searches Triggered . | . . . Construction Impeded . | . . . Haulers Reinforced . | . . . Active Scanning Responses . | . . . Cargo Convoy Interrupts . | . . . Stealth | -11 -10 -10 --------- Run | Yrd Mat Sub Distress Signals . | . . . Communications Jammed . | . . . Distress Signals . | . . . Times Spotted 35 | . 28 7 Peak Tracking Total 5 | . 5 2 Tactical Retreats 3 | . 3 . Traps | -11 -10 -10 ------- Run | Yrd Mat Sub Traps Triggered 3 | . 2 1 Indirectly . | . . . Trap Hack Attempts . | . . . Triggered . | . . . Disarmed . | . . . Reprogrammed . | . . . Reused . | . . . Traps Extracted . | . . . Installed . | . . . Triggered . | . . . Machines | -11 -10 -10 ---------- Run | Yrd Mat Sub Machines Disabled 2 | . 2 . Max in Single Turn 1 | . 1 . Machines Repaired . | . . . Machines Dismantled . | . . . Machines Sabotaged . | . . . Overloaded Fab Kills . | . . . Hacking | -11 -10 -10 --------- Run | Yrd Mat Sub Machines Accessed 10 | . 9 1 Terminals 6 | . 6 . Fabricators . | . . . Repair Stations 1 | . 1 . Recycling Units 2 | . 2 . Scanalyzers . | . . . Garrison Access . | . . . Total Hacks 24 | . 23 1 Successful 11 | . 10 1 Failed 13 | . 13 . Catastrophic . | . . . Database Lockouts . | . . . Manual 19 | . 19 . Terminals 17 | . 17 . Fabricators . | . . . Repair Stations 3 | . 3 . Recycling Units 3 | . 3 . Scanalyzers . | . . . Garrison Access . | . . . Terminal Hacks 2 | . 1 1 Robot Schematic 1 | . 1 . Proto ID Catalog 1 | . . 1 Fabricator Hacks . | . . . Repair Station Hacks 1 | . 1 . Refit 1 | . 1 . Recycling Unit Hacks . | . . . Scanalyzer . | . . . Garrison Access Hacks . | . . . Unauthorized Hacks 8 | . 8 . Terminals 6 | . 6 . Botnet 2 | . 2 . Skim 4 | . 4 . Fabricators . | . . . Repair Stations . | . . . Recycling Units 2 | . 2 . Tunnel 2 | . 2 . Scanalyzers . | . . . Garrison Access . | . . . Data Cores Recovered . | . . . Used . | . . . Hacking Detections 8 | . 8 . Full Trace Events 1 | . 1 . Feedback Events . | . . . Feedback Blocked . | . . . Robot Schematics Acquired 1 | . 1 . Robots Built . | . . . Authchips . | . . . Time . | . . . Total Robot Build Rating . | . . . Part Schematics Acquired . | . . . Parts Built . | . . . Authchips . | . . . Time . | . . . Total Part Build Rating . | . . . Part Studies Acquired . | . . . Parts Repaired . | . . . Time . | . . . Parts Recycled . | . . . Recycled Matter . | . . . Retrieved Matter . | . . . Retrieved Components . | . . . Parts Scanalyzed . | . . . Part Schematics Acquired . | . . . Parts Damaged . | . . . Bothacking | -11 -10 -10 ------------ Run | Yrd Mat Sub Used RIF Installer . | . . . Robots Hacked . | . . . Non-combat . | . . . Combat . | . . . Robot Hacks Applied . | . . . Relay Couplers Released . | . . . Fabnet Peak Effective % . | . . . Robots Rewired . | . . . Allies Hacked . | . . . Hacks Repelled . | . . . Allies | -11 -10 -10 -------- Run | Yrd Mat Sub Total Allies . | . . . Largest Group . | . . . Highest-Rated Group . | . . . Highest-Rated Ally . | . . . Total Orders . | . . . Ally Attacks . | . . . Total Damage . | . . . Kills . | . . . Allies Corrupted . | . . . Allies Melted . | . . . Intel | -11 -10 -10 ------- Run | Yrd Mat Sub Active Infowar (turns) 936 | 4 428 504 Sensors 484 | . . 484 Seismic 452 | 4 428 20 Robot Analysis Total . | . . . Derelict Logs Recovered . | . . . Drone Launches . | . . . Drone Recoveries . | . . . Exploration | -11 -10 -10 ------------- Run | Yrd Mat Sub Turns Passed 3043 | 134 1419 1490 Spaces Moved 1620 | 63 929 628 Core 1 | 1 . . Treads 627 | . . 627 Legs . | . . . Wheels 992 | 62 929 1 Hover . | . . . Flight . | . . . Fastest Speed 50 | 50 90 135 Average Speed 145 | 90 117 193 Slowest Speed 320 | 100 135 320 Overloaded Moves . | . . . Propulsion Burnouts . | . . . Robots Hopped . | . . . Potential Cave-ins . | . . . Cave-ins Triggered . | . . . Exploration Rate (%) 50 | 4 99 48 Regions Visited 2 Branch Regions 1 Pre-discovered Areas 3 | . 2 1 Known Exits Taken . | . . . Unknown Exits Taken 2 | 1 1 . Scrap Searched 1 | . . 1 Spaces Dug 8 | . 3 5 Terrain Destroyed 9 | . 3 6 Melee . | . . . Projectile 9 | . 3 6 AOE . | . . . Terrain Rammed . | . . . Walls Destroyed . | . . . Machines Disabled . | . . . Actions | -11 -10 -10 --------- Run | Yrd Mat Sub Total 2071 | 98 1131 842 Wait 219 | . 90 129 Move 1618 | 62 928 628 Hop . | . . . Pick Up 32 | 5 18 9 Fast Attach 8 | 6 1 1 Attach 6 | 1 3 2 Detach 1 | . 1 . Swap 25 | . 14 11 Drop 30 | . 6 24 Fire 124 | 24 65 35 Melee 5 | . 5 . Ram . | . . . Kick . | . . . Crush . | . . . Escape Stasis . | . . . Rewire . | . . . Trap . | . . . Miscellaneous 3 | . . 3 Route ------- -11/Scrapyard -10/Materials (discovered 5 exits: [*Mat x3] / [*Min] / *Sub) -10/Subcaves (discovered 1 exit: [*Mat]) History --------- Turn | Location | Event 15 | -11/Scrapyard | Discovered new exit (range 16) 135 | -11/Scrapyard | Entered Materials 305 | -10/Materials | Build established: Mutant 323 | -10/Materials | Discovered new exit (range 10) 390 | -10/Materials | Discovered new exit (range 6) 586 | -10/Materials | Discovered new exit (range 9) 665 | -10/Materials | Discovered new exit (range 16) 835 | -10/Materials | Derelicts attacked the area 1146 | -10/Materials | Discovered new exit (range 13) 1554 | -10/Materials | Entered Subcaves 1991 | -10/Subcaves | Core integrity fell below 50% 2364 | -10/Subcaves | Shifting Twisted Machinery released Sub. Machine Gun 2365 | -10/Subcaves | Shifting Twisted Machinery released Sub. Laser 2487 | -10/Subcaves | Learned location of Zion (-6) 2487 | -10/Subcaves | Met a Zionite searching for "candidates" 2493 | -10/Subcaves | Build established: Subdweller-Mutant 2803 | -10/Subcaves | Visited 4L-MR0's lab 2976 | -10/Subcaves | Discovered new exit (range 14) 3041 | -10/Subcaves | Core integrity fell below 20% 3044 | -10/Subcaves | Destroyed by 3W-IK3(R) with Subdweller Machine Gun Last Messages --------------- Powered Cannon 02821_ Triggered Piercing Trap. 02821_ Spikes shoot up from the floor. 02821_ Critical hit (Impale). 02831_ KA-7UA(R): "WEHOME!" 02835_ KA-7UA(R) destroyed. 02843_ Subatomizers dissect the Wheel. 02845_ System corrupted: Energy discharge (-65). 02848_ Dropped Sub. Machine Gun. 02851_ Scrap Shield Fragment affixed to Scrap Shield (+46). 02852_ Acquired 34 matter. 02916_ Subatomizers dissect the Wheel. 02974_ System corrupted: FCS attempts to trigger Sub. Machine Gun. 02974_ System corrupted: Sub. Machine Gun misfires. 02976_ EXIT=FOUND 02984_ Acquired 6 matter. 03033_ VGLAO9VWUZSUIXOT#FXHGNPIH7 Map ----- +----------------------------------------------------+ | ??????????????????????# #?????? | | ??????????????????????# #?????? | | ??????????????????????# #?????? | | ??????????????????????# ## ##?????? | | ??????????????????????# ### ##??????? | | ??????????????????????## # #?##????????? | | ???????????????????????## ### #?????????? | | ??????????????????????### ##? < #????????? | | ??????????????????????# ##?? #????????? | | ??????????????????????# #??? #????????? | | ?????????????????????### #??? #????????? | | ????????????????????## # ##??? ###????????? | | ????????????????????# ##??? ##??????????? | | ????????????????????# #??? #???????????? | | ????????????????????# # ##?? #???????????? | | ????????????????????# ###?? #???????????? | | ????????????????????# ##???# R ??????????? | | ???????????????????## ##?# ??????????? | | ??????????????????## ## ?????????? | | ??????????????????# ?????????? | | ??????????????????# #????????????? | | ??????????????????## #####????????????? | | ?????????????????### ##???????????????? | | ????????????????## ### #?????????? | | ????????????????# #?????????? | | ????????????????# @ #?????????? | | ????????????????# #### #????????? | | ????????????????# #???# #????????? | | ????????????????# ##????# ####??????????? | | ????????????????# ##??????# ##?????????????? | | ????????????????# ##????????###??????????????? | | ????????????????###???????????????????????????? | | ??????????????????????????????????????????????? | | ??????????????????????????????????????????????? | | ??????????????????????????????????????????????? | | ??????????????????????????????????????????????? | | ??????????????????????????????????????????????? | | ??????????????????????????????????????????????? | | ??????????????????????????????????????????????? | | ??????????????????????????????????????????????? | | ??????????????????????????????????????????????? | | ??????????????????????????????????????????????? | | ??????????????????????????????????????????????? | | ??????????????????????????????????????????????? | | ??????????????????????????????????????????????? | | ??????????????????????????????????????????????? | | ??????????????????????????????????????????????? | | ??????????????????????????????????????????????? | | ??????????????????????????????????????????????? | | ??????????????????????????????????????????????? | +----------------------------------------------------+ Best States ------------- Heat Dissipation 25 Energy Generation 10 Energy Capacity 250 Matter Stores 300 Matter Capacity 300 Sight Range 16 Robot Scan Range 14 Terrain Scan Density 10 Armor Coverage 800 Evasion (%) 42 Recoil Reduction 2 Offensive Hacking 10 Item Schematics ----------------- None Robot Schematics ------------------ M-13 Machinist | -10/Materials | Hacked Fabricated ------------ Nothing Repaired ---------- Nothing Studied --------- None Alien Tech Used ----------------- None Achievements -------------- None Challenges ------------ None Game ------ Seed GunMachineThermoblaster Manual? 0 Play Time 00:18:59 Cumulative 742.8 hours Start 2026.04.25 @ 00:23:48 End 2026.04.25 @ 00:39:25 Sessions 1 Manual Loads 0 Difficulty Rogue Special Mode None Game No. 215 Rogue 215 Adventurer 0 Explorer 0 Win Type - Total 28 Types 10/3/7/1/1/0/2/1/1/2 Lore% 95 Gallery% 87 Achievement% 81 Wizard Run 0 Options --------- Layout 1 ASCII 0 Keyboard 0 Movement Mouse Keybinds 0 Fullscreen 2 Font 32/SmallcapsGlow Map View 50x35 Zoom Use 0% Tactical HUD 1 Map Filters NONE Filters NONE Steam 1 RUN: a4a2653d-a788-49de-a518-e047d6d7efca